bitfinex/quotes_ETHUSD_20241123
["timestamp","ask_amount","ask_price","bid_price","bid_amount"]
[1732391461313,0.27171978,3408.5,3408.3,0.7588]
[1732391461509,0.27171978,3408.4,3408.3,0.7588]
[1732391461821,0.5921995,3408.4,3408.0,0.7588]
[1732391462018,0.27164252,3408.3,3408.0,0.7588]
[1732391462226,0.32720094,3408.3,3408.2,2.05387]
[1732391462465,0.05555842,3408.3,3408.2,2.05387]
[1732391462952,0.05554743,3408.3,3408.2,2.05387]
[1732391463153,3.543296,3408.9,3408.1,0.55]
[1732391463323,0.2716763,3408.8,3408.2,2.08320519]
[1732391463520,3.16407,3409.6,3408.7,2.05356]
[1732391463858,2.93316,3409.3,3408.7,2.05356]
[1732391464013,0.27170496,3409.2,3408.7,2.05356]
[1732391464347,2.93347,3409.0,3408.5,0.2925]
[1732391464553,3.55289295,3408.9,3408.5,0.2925]
[1732391464768,3.20529496,3408.8,3408.1,0.2925]
[1732391464950,2.93383,3408.6,3408.1,0.2925]
[1732391465245,0.27170496,3408.5,3408.1,0.2925]
[1732391465411,2.93383,3408.6,3408.1,0.2925]
[1732391465614,0.27172524,3408.5,3408.1,0.2925]
[1732391465810,0.05567573,3408.5,3408.1,2.34642]
[1732391466222,0.0556244,3408.4,3408.1,2.34642]
[1732391466423,0.0556244,3408.4,3408.1,0.2925]
[1732391466838,2.93385,3408.5,3408.1,0.2925]
[1732391467517,0.0556244,3408.4,3408.1,0.2925]
[1732391467960,2.93376,3408.6,3408.2,0.2925]
[1732391468247,3.20565169,3408.5,3408.2,0.2925]
[1732391468438,2.93386,3408.5,3408.2,0.2925]
[1732391468750,0.0556244,3408.4,3408.2,0.2925]
[1732391469050,0.0556244,3408.4,3408.1,0.2925]
[1732391469629,2.9895844,3408.4,3408.1,0.2925]
[1732391469834,0.0556244,3408.4,3408.1,0.2925]
[1732391470214,0.27193872,3408.3,3408.1,0.2925]
[1732391470416,0.05557308,3408.3,3408.1,0.2925]
[1732391471076,2.93389,3408.5,3408.1,0.2925]
[1732391471243,0.05552174,3408.2,3407.8,0.2925]
[1732391471444,0.27210449,3408.1,3407.5,0.2925]
[1732391471643,3.20637449,3408.0,3407.5,0.2925]
[1732391471849,0.27210449,3407.9,3407.5,0.2925]
[1732391472173,0.27210449,3407.8,3407.5,2.661936]
[1732391472387,0.27210449,3407.7,3407.5,2.37612262]
[1732391472677,0.05518881,3407.7,3407.6,0.52351226]
[1732391472860,0.2721666,3407.7,3407.6,0.52351226]
[1732391473037,0.05518881,3407.7,3407.6,0.52351226]
[1732391473354,0.05518881,3407.7,3407.5,0.2925]
[1732391473355,2.9342,3408.1,3407.5,0.2925]
[1732391473676,0.27221435,3408.0,3407.5,0.2925]
[1732391473979,0.32750585,3407.9,3407.6,0.02934244]
[1732391474176,0.0552915,3407.9,3407.6,0.02934244]
[1732391474471,2.93367,3408.7,3407.8,0.55]
[1732391474669,0.27231307,3408.6,3408.0,2.05393]
[1732391474879,0.27231307,3408.5,3408.4,0.8046]
[1732391475072,0.27232302,3408.5,3408.4,2.85831]
[1732391475234,0.32619717,3408.5,3408.4,0.8046]
[1732391475577,0.32619717,3408.5,3408.4,2.85834]
[1732391475746,0.32619717,3408.5,3408.4,3.70084]
[1732391475958,2.93292,3409.6,3409.0,2.05337]
[1732391476157,0.27237628,3409.5,3409.2,0.8046]
[1732391476462,0.27237628,3409.4,3409.2,0.8046]
[1732391476797,0.32666092,3409.3,3409.2,0.8046]
[1732391477071,0.32666092,3409.3,3409.0,0.2925]
[1732391477294,0.27237628,3409.2,3408.7,2.05356]
[1732391477483,0.27237628,3409.1,3408.8,0.55]
[1732391477680,0.27237628,3409.0,3408.6,0.2925]
[1732391477851,0.32654655,3408.9,3408.6,0.32183316]
[1732391478059,0.27237628,3408.8,3408.6,0.63690616]
[1732391478363,0.32637765,3408.7,3408.6,0.607573]
[1732391478603,0.32637765,3408.7,3408.6,0.2925]
[1732391478782,0.05406764,3408.7,3408.6,2.37545335]
[1732391478957,2.93306,3409.4,3408.7,2.05352]
[1732391479157,0.27232097,3409.3,3408.8,2.05349]
[1732391479359,0.27232097,3409.2,3408.9,2.0827329]
[1732391479680,0.27232097,3409.1,3409.0,0.8046]
[1732391479880,0.32657189,3409.1,3409.0,0.8046]
[1732391480873,0.27232097,3409.1,3409.0,0.8046]
[1732391481393,0.27232097,3409.1,3409.0,2.85798]
[1732391481394,0.32657189,3409.1,3409.0,2.85798]
[1732391481595,0.32657189,3409.1,3409.0,3.40146172]
[1732391481806,0.05425092,3409.1,3409.0,3.95146172]
[1732391482098,2.9326,3410.0,3409.4,2.34563]
[1732391482256,2.93281,3409.7,3409.5,0.234563]
[1732391482456,0.27224248,3409.6,3409.4,0.2925]
[1732391482689,0.27224248,3409.5,3409.4,0.2925]
[1732391483105,0.27224248,3409.5,3409.3,0.2925]
[1732391483271,0.27224248,3409.4,3409.3,0.2925]
[1732391484298,0.27224248,3409.4,3409.2,2.05326]
[1732391484596,0.2311,3410.2,3409.5,2.05304]
[1732391484756,3.20452624,3410.1,3409.6,0.02932536]
[1732391484959,2.93264,3409.9,3409.6,0.02932536]
[1732391485203,0.27205624,3409.8,3409.2,0.55]
[1732391485499,3.20485624,3409.7,3409.1,2.05331]
[1732391485694,0.27205624,3409.6,3409.1,2.05331]
[1732391485859,0.27205624,3409.5,3409.0,0.8046]
[1732391486057,2.93289,3409.6,3409.0,3.173024]
[1732391486303,0.2719728,3409.5,3409.0,2.85797]
[1732391486473,2.93289,3409.6,3409.0,2.85797]
[1732391486673,2.93264,3409.9,3409.0,2.85797]
[1732391486674,0.27193257,3409.5,3409.1,2.08259869]
[1732391486877,2.93265,3409.9,3409.2,2.05321]
[1732391487096,0.27191312,3409.8,3409.3,0.02932837]
[1732391487279,0.27191312,3409.7,3409.3,0.02932837]
[1732391487476,0.27191312,3409.6,3409.3,0.02932837]
[1732391487663,2.93272,3409.8,3409.3,0.02932837]
[1732391487860,0.27177984,3409.7,3409.3,0.02932837]
[1732391488055,0.27177984,3409.6,3409.3,0.02932837]
[1732391488294,0.05296459,3409.6,3409.1,0.02932846]
[1732391488502,0.05296459,3409.6,3409.0,2.85798]
[1732391488797,2.98586459,3409.6,3409.0,3.143778]
[1732391488967,0.27169711,3409.5,3409.0,3.143778]
[1732391489169,0.0529133,3409.5,3409.0,3.143778]
[1732391489705,0.0529133,3409.5,3409.2,2.05322]
[1732391490009,2.93255,3410.0,3409.3,2.60218824]
[1732391490309,5.93212,3410.5,3409.8,2.0529]
[1732391490310,0.27153492,3409.9,3409.8,2.0529]
[1732391490679,2.93222,3410.4,3409.8,2.0529]
[1732391490997,0.2715336,3410.3,3409.9,0.02932381]
[1732391491298,0.2715336,3410.2,3409.8,2.08222325]
[1732391491503,0.2715336,3410.3,3409.8,2.08222325]
[1732391491687,0.2714512,3410.2,3409.8,2.08222325]
[1732391491872,2.93222,3410.4,3409.8,2.08222325]
[1732391492079,0.27146045,3410.3,3409.8,2.08222325]
[1732391492275,2.93222,3410.4,3409.8,2.08222325]
[1732391492598,2.93239,3410.2,3409.8,0.02932325]
[1732391492803,0.27137168,3410.1,3409.7,2.05294]
[1732391492986,2.93224,3410.4,3409.8,2.05289]
[1732391493193,20.0,3410.3,3410.1,2.05266]
[1732391493364,20.0,3410.3,3410.0,0.7964]
[1732391493564,20.0,3410.3,3410.2,2.05266]
[1732391493800,20.0,3410.3,3410.0,0.7964]
[1732391494073,20.0,3410.3,3410.1,2.05271]
[1732391494272,20.0,3410.3,3410.2,0.2925]
[1732391494682,20.0,3410.3,3410.2,2.34516]
[1732391497338,20.0,3410.3,3410.2,3.69156]
[1732391499914,20.0,3410.3,3410.2,7.51822581]
[1732391503034,20.0,3410.3,3410.2,8.09153127]
[1732391507728,20.0,3410.3,3410.2,10.17969354]
[1732391507729,12.92728485,3410.3,3410.2,10.17969354]
[1732391507885,0.2311,3412.0,3411.5,2.05183]
[1732391508090,3.73738,3412.3,3411.6,2.0810868]
[1732391508388,0.04943303,3412.2,3411.8,2.0517]
[1732391508592,0.04943303,3412.2,3411.9,0.02930545]
[1732391509901,0.04943303,3412.2,3412.0,0.7754]
[1732391510232,3.69407,3412.6,3412.1,0.02930381]
[1732391510595,0.7637,3412.6,3412.1,0.02930381]
[1732391510795,0.7637,3412.9,3412.2,2.05144]
[1732391511034,3.69376,3412.9,3412.3,0.02930115]
[1732391511529,2.93006,3412.9,3412.3,1.78763115]
[1732391511893,0.04983975,3412.8,3412.5,1.75823]
[1732391512098,0.04983975,3412.8,3412.6,0.02929916]
[1732391512368,0.1015279,3413.0,3412.7,2.53353]
[1732391512543,0.1015279,3413.0,3412.8,0.02929666]
[1732391513245,0.1015279,3413.0,3412.7,2.53353]
[1732391514022,0.1015279,3413.0,3412.7,0.7754]
[1732391515296,0.1015279,3413.0,3412.7,2.53353]
[1732391515500,0.05004377,3412.9,3412.7,2.53353]
[1732391516410,0.05004377,3412.9,3412.7,0.7754]
[1732391517036,0.05004377,3412.9,3412.8,4.57290808]
[1732391517339,0.1015279,3413.0,3412.9,3.55]
[1732391517649,0.1015279,3413.0,3412.9,5.30803]
[1732391517958,0.1015279,3413.0,3412.9,6.08343]
[1732391518156,0.1015279,3413.0,3412.9,4.3254]
[1732391518311,0.15162286,3413.0,3412.9,4.3254]
[1732391518510,0.15162286,3413.0,3412.9,6.08343]
[1732391518824,0.1015279,3413.0,3412.9,6.11272257]
[1732391519037,0.1015279,3413.0,3412.6,2.53357]
[1732391519331,0.15162286,3413.0,3412.6,0.80469515]
[1732391519508,0.15162286,3413.0,3412.6,0.7754]
[1732391520122,0.15162286,3413.0,3412.6,2.53358]
[1732391520332,0.15162286,3413.0,3412.6,0.7754]
[1732391520655,0.15162286,3413.0,3412.7,3.02929707]
[1732391520808,0.1015279,3413.0,3412.7,4.78738707]
[1732391521251,0.0501841,3412.9,3412.8,0.02929625]
[1732391521405,0.0501841,3412.9,3412.8,4.78737625]
[1732391521747,0.1015279,3413.0,3412.8,8.15220433]
[1732391521950,0.1015279,3413.0,3412.9,6.08343]
[1732391523159,0.1015279,3413.0,3412.9,6.11271958]
[1732391523510,0.1015279,3413.0,3412.9,5.56272035]
[1732391524246,0.15178437,3413.0,3412.9,5.85522035]
[1732391524455,0.15178437,3413.0,3412.9,0.2925]
[1732391524659,0.15178437,3413.0,3412.6,4.0677]
[1732391524872,0.15178437,3413.0,3412.9,2.05033]
[1732391525160,0.15178437,3413.0,3412.9,0.2923]
[1732391525953,0.15178437,3413.0,3412.8,0.2923]
[1732391526158,0.15178437,3413.0,3412.9,0.02929633]
[1732391526451,0.15178437,3413.0,3412.9,0.02929634]
[1732391526662,0.15178437,3413.0,3412.9,2.85502633]
[1732391526949,0.1015279,3413.0,3412.9,5.85502633]
[1732391527248,0.15004513,3413.0,3412.9,5.85502633]
[1732391527664,0.1015279,3413.0,3412.9,5.85502633]
[1732391530164,0.1015279,3413.0,3412.9,5.95502633]
[1732391530348,0.00878343,3414.1,3414.0,2.04976]
[1732391530518,0.00878343,3414.1,3414.0,5.85346]
[1732391530721,0.00878343,3414.1,3414.0,5.88274362]
[1732391531746,0.00878343,3414.1,3413.8,0.2923]
[1732391532437,0.04914657,3414.0,3413.8,0.2923]
[1732391532881,0.04914657,3414.0,3413.8,0.32158662]
[1732391533236,0.04914657,3414.0,3413.9,2.04982]
[1732391533749,0.00878343,3414.1,3413.9,5.80632]
[1732391533943,0.00878343,3414.1,3414.0,5.07904288]
[1732391535139,0.00878343,3414.1,3414.0,5.83554288]
[1732391537463,0.00878343,3414.1,3414.0,6.38554288]
[1732391539343,0.00878343,3414.1,3414.0,6.92839777]
[1732391539545,0.00878343,3414.1,3414.0,6.89911489]
[1732391540296,0.00878343,3414.1,3414.0,5.80626]
[1732391540460,0.00878343,3414.1,3414.0,5.83553879]
[1732391542241,0.00878343,3414.1,3414.0,6.41364139]
[1732391542745,0.00878343,3414.1,3414.0,7.06364139]
[1732391542948,0.00878343,3414.1,3414.0,7.0343626]
[1732391546493,0.00878343,3414.1,3414.0,7.1343626]
[1732391547217,1.75,3415.6,3415.2,0.7565]
[1732391547397,1.75,3415.6,3415.2,0.02927476]
[1732391547604,0.04550375,3415.5,3415.2,0.02927476]
[1732391547906,0.04550375,3415.5,3415.2,1.75681]
[1732391548112,0.04550375,3415.5,3415.0,0.02927607]
[1732391548297,0.04550375,3415.5,3415.0,1.78619607]
[1732391548466,0.04550375,3415.5,3414.9,3.0]
[1732391548467,0.7575,3415.4,3414.9,0.02927464]
[1732391548668,0.7575,3415.4,3414.7,3.02927682]
[1732391548901,2.97345152,3415.3,3414.5,3.0]
[1732391549102,2.92851,3414.8,3413.8,1.75755]
[1732391549305,0.8292,3414.4,3413.9,0.02928279]
[1732391549512,0.8292,3414.4,3413.8,2.384889]
[1732391549814,0.8292,3414.4,3413.9,1.75748]
[1732391549971,0.8292,3414.4,3414.0,0.2923]
[1732391550181,0.04498726,3414.3,3414.1,0.02928555]
[1732391550504,0.04498726,3414.3,3414.1,0.2923]
[1732391551493,0.04498726,3414.3,3414.0,0.2923]
[1732391552524,0.04498726,3414.3,3414.1,0.2923]
[1732391552713,2.92894,3414.2,3414.1,0.2923]
[1732391553088,0.8292,3414.1,3413.2,0.2923]
[1732391553290,2.92903,3414.1,3413.2,0.2923]
[1732391553486,0.7794,3413.4,3412.9,0.32159138]
[1732391553685,0.7794,3413.4,3413.1,0.2923]
[1732391553902,0.04440263,3413.3,3413.1,0.3215934]
[1732391554436,0.04440263,3413.3,3413.0,1.75797]
[1732391554637,0.04440263,3413.3,3413.2,1.75788]
[1732391555126,2.92849,3414.8,3413.1,3.02929388]
[1732391555127,0.7794,3414.2,3413.4,0.758]
[1732391555306,0.7794,3414.8,3414.0,1.75744]
[1732391555635,0.7794,3414.8,3413.8,1.75755]
[1732391555636,2.92869,3414.5,3413.8,1.75755]
[1732391555936,2.92869,3414.5,3413.7,0.02928336]
[1732391555937,2.92869,3414.5,3413.7,1.78689336]
[1732391556247,0.7794,3414.8,3413.9,1.75748]
[1732391556248,2.92857,3414.7,3413.9,1.75748]
[1732391556404,2.92869,3414.5,3414.0,0.02928513]
[1732391556732,2.92877,3414.4,3413.7,1.75759]
[1732391556919,2.97204861,3414.4,3413.7,1.75759]
[1732391557118,0.04327861,3414.4,3413.9,1.75748]
[1732391557316,0.04327861,3414.4,3413.8,4.75753]
[1732391557546,2.92875,3414.5,3413.8,1.75753]
[1732391557727,0.04322746,3414.3,3413.8,1.75753]
[1732391557906,2.92908,3414.1,3413.3,1.75779]
[1732391558111,2.92908,3414.1,3413.3,1.78707947]
[1732391558321,0.04313388,3414.0,3413.3,1.78707947]
[1732391558534,0.04313388,3414.0,3413.5,1.75771]
[1732391558718,0.04313388,3414.0,3413.6,0.02928971]
[1732391559618,0.04313388,3414.0,3413.2,3.0]
[1732391559619,0.04313388,3414.0,3413.5,0.02928761]
[1732391559803,2.929,3414.2,3413.3,1.78709838]
[1732391560013,0.04168858,3413.9,3413.5,1.75771]
[1732391560201,2.929,3414.2,3413.5,1.75771]
[1732391560397,0.04163741,3413.8,3413.3,1.78707838]
[1732391560602,3.70877,3413.7,3412.9,1.75801]
[1732391560802,3.70877,3413.7,3412.9,0.02929272]
[1732391560803,2.92963,3413.4,3412.9,0.02929272]
[1732391561001,2.92986,3413.2,3412.4,2.36255689]
[1732391561200,3.70931,3413.1,3412.4,0.0292941]
[1732391561435,3.75054659,3413.1,3412.5,1.75823]
[1732391561639,2.93021,3412.8,3412.3,0.62062727]
[1732391561824,2.93021,3412.8,3411.4,1.85876]
[1732391561825,2.93012,3412.9,3412.1,1.75844]
[1732391562029,2.93012,3412.9,3412.1,0.02930004]
[1732391562030,2.97127183,3412.7,3412.1,0.02930004]
[1732391562340,0.04108302,3412.8,3412.2,1.75835]
[1732391562550,0.04094463,3412.6,3412.3,0.02930006]
[1732391562706,0.04099583,3412.7,3412.3,0.02930006]
[1732391562901,0.04089343,3412.5,3411.9,1.78784049]
[1732391563103,0.7794,3413.1,3411.9,0.02930049]
[1732391563104,2.93023,3412.7,3411.9,0.02930049]
[1732391563303,0.7794,3412.3,3411.5,1.75873]
[1732391563552,2.93066,3412.2,3411.6,0.02930394]
[1732391563712,0.0407207,3412.2,3411.9,1.75854]
[1732391564039,0.0407207,3412.2,3412.0,1.78777391]
[1732391564604,0.0407207,3412.2,3412.1,1.75844]
[1732391565266,3.70964,3412.7,3412.1,1.75844]
[1732391565499,3.70964,3412.7,3412.2,0.02930175]
[1732391565500,0.7794,3412.7,3412.2,0.02930175]
[1732391565712,0.7794,3412.7,3412.4,1.75829]
[1732391566029,1.3294,3413.5,3412.5,0.0293009]
[1732391566202,2.92998,3413.0,3412.5,0.0293009]
[1732391567099,2.93008,3412.9,3412.5,0.0293009]
[1732391567412,2.93008,3412.9,3411.8,3.0]
[1732391567413,2.93041,3412.5,3411.8,3.0]
[1732391567778,0.04079519,3412.4,3411.8,1.75858]
[1732391568003,0.04079519,3412.4,3411.8,4.75858]
[1732391568376,2.93041,3412.5,3411.8,4.75858]
[1732391568586,0.04079519,3412.4,3411.8,3.0]
[1732391568796,2.93041,3412.5,3411.9,1.75853]
[1732391568797,2.93043,3412.5,3411.9,1.75853]
[1732391569009,0.7794,3412.3,3411.4,2.51676]
[1732391569210,2.93083,3412.1,3411.4,0.02930504]
[1732391569409,2.93084,3412.0,3411.3,1.75882]
[1732391569719,2.97142519,3412.0,3411.4,1.7588]
[1732391570408,0.04058519,3412.0,3411.5,0.02930736]
[1732391570895,3.70998,3412.3,3411.5,0.02930736]
[1732391571104,0.0403885,3411.9,3411.5,1.78801736]
[1732391571299,2.93066,3412.2,3411.5,0.02930736]
[1732391571509,0.04033728,3411.8,3411.5,0.02930736]
[1732391571691,2.93077,3412.1,3411.4,1.75877]
[1732391571881,0.04028606,3411.7,3411.4,1.75877]
[1732391572099,2.93077,3412.1,3411.4,2.353703]
[1732391572313,0.04023483,3411.6,3411.4,2.353703]
[1732391572514,2.93077,3412.1,3411.4,2.353703]
[1732391572818,2.93084,3412.0,3411.4,2.353703]
[1732391573023,2.97127972,3412.0,3411.4,0.594933]
[1732391573230,0.8088,3411.8,3411.4,0.594933]
[1732391573647,0.04025591,3411.7,3411.5,0.02930963]
[1732391573917,0.04025591,3411.7,3411.4,0.62424268]
[1732391574121,0.8088,3411.8,3411.4,0.62424268]
[1732391574324,0.04020468,3411.6,3411.4,0.62424268]
[1732391574648,0.04020468,3411.6,3410.8,0.8321]
[1732391574649,2.93138,3411.4,3410.7,1.75916]
[1732391574920,2.93138,3411.4,3410.5,2.59136]
[1732391574921,3.74029,3411.3,3410.5,1.78857259]
[1732391575132,3.78031818,3411.3,3410.6,1.75921]
[1732391575433,3.78031818,3411.3,3410.2,3.64692808]
[1732391575434,2.93166,3411.1,3410.4,0.32161389]
[1732391575587,0.84882818,3411.3,3410.6,1.75921]
[1732391575799,0.84882818,3411.3,3410.7,1.78846371]
[1732391576001,3.78026818,3411.3,3410.7,1.78846371]
[1732391576461,0.84882818,3411.3,3410.9,1.75906]
[1732391576738,0.84882818,3411.3,3411.0,0.02931374]
[1732391576943,0.84882818,3411.3,3410.8,1.78839372]
[1732391577634,0.84882818,3411.3,3410.8,0.02931372]
[1732391577853,0.84882818,3411.3,3410.6,2.0515]
[1732391577994,3.7403,3411.3,3410.6,2.0515]
[1732391578199,3.7403,3411.3,3410.6,0.2923]
[1732391578200,0.03997694,3411.2,3410.6,0.2923]
[1732391578524,2.97149694,3411.2,3410.6,0.2923]
[1732391578722,2.97149694,3411.2,3410.6,2.05151]
[1732391578723,0.03997694,3411.2,3410.6,2.05151]
[1732391579227,0.03997694,3411.2,3410.8,1.75909]
[1732391579411,0.03997694,3411.2,3410.9,0.02931411]
[1732391579738,0.8088,3411.3,3410.9,0.02931411]
[1732391579901,0.03988451,3411.1,3410.9,0.02931411]
[1732391580101,0.8088,3411.3,3410.5,3.0]
[1732391580403,2.93151,3411.2,3410.4,2.0516]
[1732391580601,0.03980363,3411.1,3410.4,0.2923]
[1732391580801,0.8088,3411.3,3410.7,1.75915]
[1732391581125,0.8088,3411.3,3410.6,1.75921]
[1732391581126,2.97136488,3411.2,3410.6,1.75921]
[1732391581631,2.97136488,3411.2,3410.7,0.02931523]
[1732391581848,0.03985488,3411.2,3410.4,0.2923]
[1732391582008,2.93178,3410.9,3410.4,0.2923]
[1732391582340,0.03985488,3411.2,3410.6,1.75921]
[1732391582341,0.03964988,3410.8,3410.6,1.75921]
[1732391582505,0.03964988,3410.8,3410.6,1.78852531]
[1732391582698,2.93162,3411.1,3410.4,2.05161]
[1732391582898,0.03957876,3410.7,3410.4,2.05161]
[1732391583127,2.93162,3411.1,3410.5,1.75926]
[1732391583312,0.0395275,3410.6,3410.5,1.75926]
[1732391583519,2.93152,3411.2,3410.5,1.75926]
[1732391583739,0.0395275,3410.6,3410.5,1.75926]
[1732391583951,2.93152,3411.2,3410.5,1.75926]
[1732391584254,0.8088,3411.3,3410.6,0.2923]
[1732391584430,0.03978377,3411.1,3410.7,2.08076527]
[1732391584633,0.03983648,3411.2,3410.7,2.08076527]
[1732391584866,0.03973399,3411.0,3410.7,2.05145]
[1732391585182,3.74024,3411.3,3410.7,2.05145]
[1732391585183,0.03978524,3411.1,3410.7,2.05145]
[1732391585453,0.8088,3411.3,3410.8,1.78842426]
[1732391585658,0.03973547,3411.0,3410.8,0.02931426]
[1732391585812,2.93151,3411.2,3410.7,0.2923]
[1732391586017,2.93175,3411.0,3410.7,0.2923]
[1732391586217,0.03968422,3410.9,3410.7,0.2923]
[1732391586417,0.8301,3410.8,3410.4,0.2923]
[1732391586658,0.03956993,3410.7,3410.4,0.2923]
[1732391586872,2.93213,3410.5,3409.9,1.75956]
[1732391587036,2.93207,3410.6,3409.9,1.75957]
[1732391587214,0.03941615,3410.4,3410.0,1.78880047]
[1732391587419,2.93204,3410.6,3410.1,0.2923]
[1732391587620,0.03933913,3410.3,3410.1,0.2923]
[1732391587854,0.8301,3410.8,3410.2,1.78874053]
[1732391588155,3.76197,3410.8,3410.0,1.75951]
[1732391588364,2.932,3410.7,3410.1,0.2923]
[1732391588523,3.76197,3410.8,3410.1,2.05177]
[1732391588843,3.76197,3410.8,3409.4,4.57463808]
[1732391588844,0.8301,3410.5,3410.0,0.2923]
[1732391589159,0.75,3410.2,3410.0,0.2923]
[1732391589521,0.03923585,3410.1,3410.0,0.2923]
[1732391589728,0.03923585,3410.1,3410.0,2.05183]
[1732391589949,0.03923585,3410.1,3410.0,0.2923]
[1732391590258,0.75,3410.5,3410.0,0.2923]
[1732391590417,0.03921745,3410.1,3410.0,0.2923]
[1732391590621,2.93223,3410.4,3410.0,0.2923]
[1732391590942,0.75,3410.5,3409.6,1.75972]
[1732391590943,2.97162294,3410.3,3409.9,0.2923]
[1732391591256,0.03932294,3410.3,3409.9,0.2923]
[1732391591483,0.03932294,3410.3,3409.9,0.32162292]
[1732391591754,3.68214,3410.5,3409.9,2.08119292]
[1732391591922,0.03894662,3410.2,3410.0,0.2923]
[1732391592121,0.75,3410.5,3410.1,2.08109116]
[1732391592765,0.75,3410.5,3410.1,0.2923]
[1732391593146,0.03906093,3410.4,3410.2,1.7594]
[1732391593761,0.03906093,3410.4,3410.1,0.2923]
[1732391594339,0.03906093,3410.4,3410.2,1.78874185]
[1732391594651,3.74887,3410.8,3410.2,1.78874185]
[1732391594822,0.03900893,3410.3,3410.2,1.75942]
[1732391595018,3.74887,3410.8,3410.2,1.78873911]
[1732391595262,0.03921398,3410.7,3410.2,1.75942]
[1732391595664,0.03921398,3410.7,3410.2,1.78873895]
[1732391595900,0.03921398,3410.7,3410.6,2.05152]
[1732391596104,0.03921398,3410.7,3410.6,0.2923]
[1732391596593,0.817,3411.2,3410.6,0.2923]
[1732391596905,0.817,3411.2,3410.9,1.75904]
[1732391596906,0.03941899,3411.1,3410.9,1.75904]
[1732391597065,0.03941899,3411.1,3410.8,0.2923]
[1732391597493,2.93177,3410.9,3410.8,0.2923]
[1732391597811,2.93186,3410.8,3410.3,0.2923]
[1732391598007,0.03923753,3410.7,3410.3,0.2923]
[1732391598167,2.93214,3410.5,3409.9,0.2923]
[1732391598375,0.817,3410.3,3409.9,0.2923]
[1732391598728,0.0389812,3410.2,3410.0,2.05182]
[1732391598870,0.0389812,3410.2,3410.0,0.2923]
[1732391599088,0.817,3410.3,3410.0,0.2923]
[1732391599293,0.03890785,3410.1,3410.0,0.2923]
[1732391599499,0.817,3410.3,3410.0,0.2923]
[1732391599724,0.03890785,3410.1,3410.0,0.2923]
[1732391599909,0.817,3410.3,3409.9,0.2923]
[1732391600118,0.817,3410.3,3409.9,2.05186]
[1732391600119,0.03890785,3410.1,3409.9,2.05186]
[1732391600517,0.817,3410.3,3409.9,2.05186]
[1732391600690,0.03885658,3410.0,3409.9,2.05186]
[1732391600915,0.817,3410.3,3410.0,0.2923]
[1732391601133,0.817,3410.3,3408.5,1.86028]
[1732391601134,2.93253,3410.1,3409.4,1.75982]
[1732391601299,2.93253,3410.1,3409.3,3.0]
[1732391601300,2.93253,3410.1,3409.5,1.75978]
[1732391602184,2.93253,3410.1,3409.6,0.2923]
[1732391603028,0.817,3410.3,3409.7,0.2923]
[1732391603191,0.817,3410.3,3409.8,2.05189]
[1732391603389,0.817,3410.3,3409.8,0.2923]
[1732391603601,3.74932,3410.3,3409.8,0.2923]
[1732391604021,0.03890023,3410.2,3409.8,0.2923]
[1732391604321,3.74932,3410.3,3409.7,0.3216247]
[1732391604529,0.03884895,3410.1,3409.7,2.0812847]
[1732391604726,0.03890023,3410.2,3409.7,2.0812847]
[1732391605039,0.03884895,3410.1,3409.7,0.3216247]
[1732391605328,2.93238,3410.2,3409.7,0.2923]
[1732391605530,0.03879768,3410.0,3409.7,0.2923]
[1732391605719,0.03884895,3410.1,3409.7,0.2923]
[1732391606072,2.93238,3410.2,3409.7,0.2923]
[1732391606201,0.03879768,3410.0,3409.6,0.2923]
[1732391606526,0.7722,3409.8,3409.1,1.75998]
[1732391606724,3.70492,3409.8,3409.1,4.75995]
[1732391606929,0.03865045,3409.7,3409.2,0.0293279]
[1732391607431,0.03865045,3409.7,3409.3,0.2923]
[1732391607585,0.7722,3409.8,3409.3,0.2923]
[1732391607790,0.03864235,3409.7,3409.3,0.2923]
[1732391607994,0.7722,3409.8,3409.3,0.2923]
[1732391608236,2.97146235,3409.7,3409.3,0.2923]
[1732391608390,0.03864235,3409.7,3409.0,0.2923]
[1732391608590,2.93309,3409.4,3409.0,0.2923]
[1732391608787,0.8106011,3409.3,3409.0,0.2923]
[1732391609192,0.8106011,3409.3,3409.0,2.05234]
[1732391609401,0.0384011,3409.3,3409.2,0.2923]
[1732391609595,0.7722,3409.6,3409.2,0.2923]
[1732391609800,0.03850296,3409.5,3409.2,0.2923]
[1732391610318,0.03850296,3409.5,3409.0,0.2923]
[1732391610637,2.93307,3409.4,3409.0,0.2923]
[1732391610860,2.93324,3409.2,3409.0,0.2923]
[1732391611000,0.03838048,3409.3,3408.8,0.2923]
[1732391611641,2.97154048,3409.3,3408.8,0.2923]
[1732391612248,0.03838048,3409.3,3408.9,1.76008]
[1732391612442,2.93304,3409.5,3408.8,0.2923]
[1732391612603,0.03843178,3409.4,3408.8,0.2923]
[1732391613237,2.97150178,3409.4,3408.8,2.05242]
[1732391614051,2.97150178,3409.4,3408.7,0.2923]
[1732391614052,2.93316,3409.3,3408.7,0.2923]
[1732391614253,2.93316,3409.3,3408.7,0.3216334]
[1732391614422,0.03832918,3409.2,3408.8,1.76013]
[1732391614748,2.93315,3409.3,3408.7,0.3216334]
[1732391615050,0.03825112,3409.2,3408.7,0.3216334]
[1732391615351,0.03825112,3409.2,3408.7,0.2923]
[1732391615653,0.03825112,3409.2,3408.8,1.76014]
[1732391616149,2.93308,3409.4,3408.8,1.76014]
[1732391616360,0.03819981,3409.1,3408.8,1.76014]
[1732391616651,3.70512,3409.6,3409.0,1.76001]
[1732391616946,0.7722,3409.6,3409.0,1.76]
[1732391617148,3.70514,3409.6,3409.0,1.76]
[1732391617324,2.93298,3409.5,3408.8,1.76014]
[1732391617778,2.93298,3409.5,3408.7,0.32163341]
[1732391618054,2.93298,3409.5,3408.9,1.76008]
[1732391618552,2.93307,3409.4,3408.7,1.78952341]
[1732391618747,3.70509,3409.6,3408.8,1.76014]
[1732391619058,2.93301,3409.5,3408.8,1.76014]
[1732391619656,0.03835371,3409.4,3408.8,1.76014]
[1732391619954,2.97143371,3409.4,3408.8,1.76014]
[1732391621867,0.03835371,3409.4,3408.9,1.76008]
[1732391622084,0.03835371,3409.4,3409.1,1.75999]